bitfinex/quotes_ETHUSD_20240717
["timestamp","ask_amount","ask_price","bid_price","bid_amount"]
[1721245630635,0.91917277,3425.6,3425.4,4.54671568]
[1721245631077,0.91917277,3425.5,3425.4,4.54671568]
[1721245631736,8.90187693,3425.8,3425.4,4.54671568]
[1721245631737,0.91917277,3425.6,3425.4,4.54671568]
[1721245631934,1.22526228,3425.7,3425.5,0.74660857]
[1721245632159,8.90187693,3425.8,3425.6,0.55]
[1721245632160,1.22526228,3425.8,3425.6,0.55]
[1721245632360,0.91904188,3425.8,3425.7,2.91911]
[1721245632658,1.22526228,3426.0,3425.8,2.91902]
[1721245632659,0.91904188,3425.9,3425.8,2.91902]
[1721245632997,0.91904188,3425.9,3425.8,3.46902]
[1721245633154,0.91904188,3426.0,3425.8,3.46902]
[1721245633479,1.22526228,3426.1,3425.7,2.91903]
[1721245633699,0.91872205,3425.8,3425.5,2.91925]
[1721245633860,0.91872205,3425.8,3424.9,2.2584]
[1721245633861,4.14449228,3425.6,3424.9,2.91978]
[1721245634060,0.91890801,3425.2,3424.9,2.91978]
[1721245634258,0.91890801,3425.1,3424.9,2.91978]
[1721245634492,1.22521069,3425.2,3424.9,2.91978]
[1721245634672,0.91896549,3425.1,3424.9,2.91978]
[1721245636011,1.22521069,3425.3,3424.9,2.91978]
[1721245636012,0.91896549,3425.2,3424.9,2.91978]
[1721245636309,0.91896549,3425.2,3425.0,11.528974]
[1721245636615,0.91896549,3425.2,3425.1,0.55]
[1721245637762,1.53151728,3425.5,3425.1,0.55]
[1721245637763,0.91896549,3425.3,3425.1,3.46962]
[1721245637985,0.91896549,3425.5,3425.2,5.37613]
[1721245638169,0.91896549,3425.5,3425.4,2.91936]
[1721245638387,0.91896549,3425.5,3425.4,3.46936]
[1721245639366,0.91896549,3425.6,3425.5,2.91928]
[1721245639562,1.22521069,3425.8,3425.5,2.91928]
[1721245639563,0.91896549,3425.7,3425.5,2.91928]
[1721245639763,0.91896549,3425.8,3425.7,2.91911]
[1721245639968,0.91896549,3425.8,3425.7,3.46911]
[1721245640168,0.91896549,3425.9,3425.7,6.38822]
[1721245640399,0.91896549,3425.9,3425.8,0.55]
[1721245640706,0.91896549,3426.0,3425.9,2.91894]
[1721245640920,0.91896549,3426.0,3425.9,4.1890865]
[1721245641298,1.22521069,3426.1,3425.9,4.1890865]
[1721245641506,0.91856596,3426.0,3425.9,4.1890865]
[1721245641813,0.91856596,3426.1,3425.9,4.1890865]
[1721245642018,1.22521069,3426.2,3426.0,0.55]
[1721245642319,1.22521069,3426.1,3426.0,0.55]
[1721245642520,1.32494479,3426.1,3426.0,0.55]
[1721245643630,1.32494479,3426.1,3425.8,0.55]
[1721245643801,0.91833934,3425.9,3425.8,0.55]
[1721245644202,0.0997672,3425.9,3425.8,0.55]
[1721245644523,1.01810654,3425.9,3425.7,0.55]
[1721245644726,1.01810654,3425.9,3425.6,3.46914]
[1721245645517,0.0997672,3425.9,3425.6,3.46914]
[1721245645899,3.0187872,3425.9,3425.0,12.86966]
[1721245646102,2.91917,3425.7,3425.0,9.95]
[1721245646408,2.91928,3425.5,3425.0,12.8697]
[1721245646782,0.09974453,3425.4,3425.0,12.8697]
[1721245646982,1.01808387,3425.4,3425.0,12.8697]
[1721245647841,1.01808387,3425.4,3425.1,0.55]
[1721245654132,1.01808387,3425.4,3425.1,2.183954]
[1721245654361,0.09974453,3425.4,3425.1,0.55]
[1721245654857,0.09974453,3425.4,3425.1,3.46961]
[1721245655159,0.09974453,3425.4,3425.2,5.83899]
[1721245655359,0.09974453,3425.4,3425.3,3.46945]
[1721245655859,0.91833934,3425.6,3425.4,2.91933]
[1721245656071,0.91833934,3425.6,3425.5,0.55]
[1721245656934,0.91833934,3425.7,3425.5,0.55]
[1721245657542,0.09967139,3425.6,3425.5,0.55]
[1721245657769,0.09967139,3425.6,3425.5,0.896933]
[1721245657969,0.09967139,3425.6,3425.5,3.816213]
[1721245658277,0.09967139,3425.6,3425.5,6.735493]
[1721245658580,0.09967139,3425.6,3425.5,14.466473]
[1721245658738,0.91833934,3426.3,3426.2,2.91868]
[1721245658937,0.91833934,3426.4,3426.2,6.38731]
[1721245659258,0.91833934,3426.4,3426.3,0.55]
[1721245659459,0.91833934,3426.4,3426.3,4.162324]
[1721245659661,0.91833934,3426.6,3426.3,4.162324]
[1721245659854,0.91833934,3426.6,3426.3,4.22069003]
[1721245660054,0.91833934,3426.7,3426.3,4.22069003]
[1721245660651,2.918,3427.0,3426.5,2.91841]
[1721245660652,0.91833934,3426.8,3426.5,2.91841]
[1721245660853,0.91833934,3426.9,3426.6,0.55]
[1721245661078,0.91833934,3426.9,3426.6,3.46832]
[1721245661278,0.91833934,3427.0,3426.6,4.1763394]
[1721245661441,0.91833934,3427.1,3426.7,2.91822]
[1721245661642,0.91833934,3427.1,3426.8,0.55]
[1721245662441,0.91833934,3427.0,3426.8,0.55]
[1721245662753,0.91833934,3427.1,3426.8,0.55]
[1721245663560,1.22521069,3427.3,3426.8,3.46817]
[1721245663561,0.91833934,3427.2,3426.8,3.46817]
[1721245664450,0.91833934,3427.2,3426.9,2.91808]
[1721245664647,1.22521069,3427.4,3426.9,2.91808]
[1721245664648,0.91833934,3427.4,3427.1,2.91789]
[1721245664885,0.91833934,3427.4,3427.2,0.55]
[1721245665085,0.91833934,3427.5,3427.2,0.55]
[1721245665392,0.91833934,3427.6,3427.2,0.55]
[1721245665593,0.91833934,3427.6,3427.3,2.91768]
[1721245665765,0.91833934,3427.7,3427.4,0.55]
[1721245665964,0.91833934,3427.7,3427.4,3.46764]
[1721245666316,0.91833934,3427.9,3427.4,3.46764]
[1721245666464,7.37,3428.0,3427.4,3.46764]
[1721245666804,2.91724,3427.9,3427.4,0.55]
[1721245667009,2.91724,3427.9,3427.3,0.55]
[1721245669252,2.91724,3427.9,3426.6,2.91828]
[1721245669253,2.4837,3427.9,3426.8,2.91815]
[1721245669575,2.91757,3427.5,3426.8,2.91815]
[1721245669772,2.91757,3427.5,3426.8,5.83626]
[1721245670292,2.91766,3427.4,3426.8,2.91811]
[1721245670497,2.91766,3427.4,3426.9,0.55]
[1721245671392,2.91766,3427.4,3426.8,0.55]
[1721245671688,2.4837,3427.3,3426.8,3.46815]
[1721245672067,2.91766,3427.4,3426.8,3.46815]
[1721245672268,2.91766,3427.4,3426.8,0.55]
[1721245672467,2.91818,3426.8,3425.9,2.3458]
[1721245672675,0.09684791,3426.7,3425.9,2.3458]
[1721245672992,0.09684791,3426.7,3426.1,2.91868]
[1721245673557,0.09684791,3426.7,3426.1,5.83738]
[1721245673982,0.09684791,3426.7,3426.2,0.55]
[1721245674887,2.91856,3426.4,3425.5,5.526883]
[1721245675196,2.91856,3426.4,3425.0,12.8697]
[1721245675197,2.9188,3426.1,3425.4,2.91931]
[1721245675556,0.09675687,3426.0,3425.4,2.91931]
[1721245675760,0.09675687,3426.0,3425.5,0.809939]
[1721245676600,0.09675687,3426.0,3425.6,0.55]
[1721245676996,2.91877,3426.1,3425.6,0.55]
[1721245677161,0.09658895,3425.9,3425.6,0.55]
[1721245677364,0.09656092,3426.0,3425.6,0.55]
[1721245677692,0.09656092,3425.9,3425.6,0.55]
[1721245677893,2.91877,3426.1,3425.6,0.55]
[1721245678207,0.09652415,3426.0,3425.5,0.55]
[1721245678406,0.09652415,3426.0,3425.5,4.334223]
[1721245680697,2.9187,3426.2,3425.5,4.334223]
[1721245681007,0.09651014,3426.1,3425.5,4.334223]
[1721245681417,3.01530014,3426.1,3425.5,4.334223]
[1721245681615,3.01530014,3426.1,3425.5,0.55]
[1721245681909,3.01530014,3426.1,3425.4,0.55]
[1721245682611,2.91894,3425.9,3425.4,0.55]
[1721245682997,0.09649614,3425.8,3425.4,0.55]
[1721245685814,2.91916,3425.7,3425.1,0.55]
[1721245686208,2.91928,3425.5,3425.1,0.55]
[1721245686518,0.09642081,3425.4,3425.1,0.55]
[1721245688070,3.01579081,3425.4,3425.1,0.55]
[1721245688276,5.39579081,3425.4,3425.1,0.55]
[1721245689902,3.01579081,3425.4,3425.1,0.55]
[1721245690103,0.09642081,3425.4,3425.1,0.55]
[1721245690353,2.9193,3425.5,3425.1,2.183964]
[1721245690560,0.09633147,3425.3,3425.1,2.183964]
[1721245690706,2.9193,3425.5,3425.1,2.183964]
[1721245690906,0.09624387,3425.4,3425.1,0.55]
[1721245691115,3.01561387,3425.4,3425.1,0.55]
[1721245694114,5.93504387,3425.4,3425.1,0.55]
[1721245694311,3.01561387,3425.4,3425.1,0.55]
[1721245701278,5.93505387,3425.4,3425.1,0.55]
[1721245702405,3.01561387,3425.4,3425.1,0.55]
[1721245702774,5.93505387,3425.4,3425.1,0.55]
[1721245702975,2.91946,3425.3,3425.1,0.55]
[1721245703404,2.91937,3425.4,3425.1,0.55]
[1721245703616,2.91937,3425.4,3425.1,1.891987]
[1721245703617,0.09624387,3425.2,3425.1,1.891987]
[1721245704095,2.91913,3425.7,3425.1,1.891987]
[1721245704278,0.09622807,3425.6,3425.1,1.891987]
[1721245704484,7.37,3426.0,3425.1,1.891987]
[1721245704791,0.09622807,3425.9,3425.6,2.91918]
[1721245704999,0.09622807,3425.9,3425.7,0.55]
[1721245705199,0.09622807,3425.9,3425.7,3.46905]
[1721245705540,0.09622807,3425.9,3425.8,5.28902]
[1721245705824,2.91839,3426.6,3425.8,5.28902]
[1721245706034,0.09634548,3425.9,3425.8,6.164833]
[1721245706182,2.91839,3426.6,3425.8,6.714833]
[1721245706379,0.09634548,3425.9,3425.8,3.245813]
[1721245706689,0.09634548,3425.9,3425.8,1.425813]
[1721245706916,2.91874,3426.2,3425.8,0.55]
[1721245707226,3.01511548,3426.1,3425.6,0.55]
[1721245707527,2.91887,3426.0,3425.6,0.55]
[1721245707830,0.09649614,3425.9,3425.6,0.55]
[1721245710950,0.09649614,3425.9,3425.8,2.91902]
[1721245711127,9.8598,3426.8,3425.8,7.264414]
[1721245711325,0.09645409,3426.7,3426.2,2.91863]
[1721245711509,2.91817,3426.8,3426.2,2.91863]
[1721245711708,2.91817,3426.8,3426.3,0.55]
[1721245711709,0.09645934,3426.7,3426.3,0.55]
[1721245712022,2.91817,3426.8,3426.3,0.55]
[1721245712529,0.09651714,3426.7,3426.3,0.55]
[1721245712708,2.91817,3426.8,3426.3,0.55]
[1721245712908,0.09651714,3426.7,3426.3,0.55]
[1721245713127,2.91801,3427.0,3426.3,0.55]
[1721245713437,0.09651714,3426.9,3426.3,3.46855]
[1721245713825,0.09651714,3426.9,3426.1,5.36781]
[1721245714035,0.09651714,3426.9,3426.2,0.55]
[1721245714439,2.91817,3426.8,3426.2,0.55]
[1721245714636,2.91825,3426.7,3426.1,5.36781]
[1721245714855,3.01485822,3426.7,3426.1,5.36781]
[1721245715755,0.09660822,3426.7,3426.2,2.91867]
[1721245716044,3.83646934,3426.9,3426.2,3.747318]
[1721245716255,0.09660472,3426.6,3426.2,2.91867]
[1721245716444,3.83646934,3426.9,3426.2,2.91867]
[1721245716445,0.91833934,3426.8,3426.2,2.91867]
[1721245716641,0.09660472,3426.5,3426.2,2.91867]
[1721245716812,3.83650934,3426.8,3426.2,2.91867]
[1721245717012,0.09660472,3426.4,3426.2,2.91867]
[1721245717213,3.83650934,3426.8,3426.2,3.747318]
[1721245717413,0.09660472,3426.3,3426.2,2.91867]
[1721245717652,0.91833934,3426.8,3426.4,2.91846]
[1721245718514,0.91833934,3426.9,3426.5,2.91842]
[1721245718739,0.91833934,3426.8,3426.5,2.91842]
[1721245719336,0.91833934,3426.9,3426.6,0.55]
[1721245719540,0.91833934,3427.0,3426.6,0.55]
[1721245719762,0.91833934,3427.0,3426.7,5.17252]
[1721245719961,0.91833934,3427.2,3426.7,5.17252]
[1721245720147,0.91833934,3427.2,3426.9,2.91801]
[1721245720371,0.91833934,3427.2,3426.7,2.2543]
[1721245720372,8.28833934,3427.4,3427.2,5.17213]
[1721245720553,1.52714456,3427.7,3427.3,2.91774]
[1721245720554,0.91833934,3427.7,3427.3,2.91774]
[1721245720736,0.91833934,3428.0,3427.2,2.2543]
[1721245720942,0.91833934,3428.0,3427.6,2.91748]
[1721245721280,7.37,3428.1,3427.6,2.91748]
[1721245721487,0.91833934,3428.2,3427.3,0.55]
[1721245721787,1.5266788,3428.5,3427.3,0.55]
[1721245721788,0.91833934,3428.5,3428.0,2.91715]
[1721245721937,0.91833934,3428.6,3428.0,2.91715]
[1721245722281,2.91655,3428.7,3428.0,2.91715]
[1721245722445,2.91664,3428.6,3428.0,2.91715]
[1721245723292,7.37,3428.8,3428.0,2.91715]
[1721245723293,2.91653,3428.8,3428.1,2.91703]
[1721245723576,2.91653,3428.8,3428.1,3.46703]
[1721245723778,2.91656,3428.7,3428.1,3.46703]
[1721245724960,5.83287,3428.9,3428.1,3.46703]
[1721245725189,2.91657,3428.7,3428.1,0.55]
[1721245725337,2.91657,3428.7,3428.1,2.91706]
[1721245725540,2.91642,3428.9,3428.2,2.91695]
[1721245725736,2.91624,3429.1,3428.2,2.97528384]
[1721245725942,10.28606,3429.3,3427.9,2.4724]
[1721245725943,10.28606,3429.3,3428.4,2.91673]
[1721245726218,10.28606,3429.3,3428.5,2.9167]
[1721245726219,2.91613,3429.2,3428.5,2.9167]
[1721245727910,2.91623,3429.1,3428.5,2.9167]
[1721245728425,2.91631,3429.0,3428.3,0.55]
[1721245729173,2.91631,3429.0,3428.4,2.9168]
[1721245729383,2.91613,3429.2,3428.4,2.9168]
[1721245729583,2.91622,3429.1,3428.4,3.56100815]
[1721245730700,2.91622,3429.1,3428.4,2.9168]
[1721245732200,2.91613,3429.2,3428.6,2.3274]
[1721245732392,0.09731354,3429.0,3428.6,2.3274]
[1721245732729,2.9568586,3429.4,3428.6,5.24401]
[1721245733027,0.09731529,3429.3,3428.6,5.24401]
[1721245733341,0.09731529,3429.3,3428.6,6.115091]
[1721245733485,3.01338529,3429.3,3428.6,6.115091]
[1721245735702,0.09731529,3429.3,3428.8,2.91639]
[1721245736123,0.09731529,3429.3,3428.8,5.83279]
[1721245736697,0.09731529,3429.3,3428.9,2.91634]
[1721245736917,0.09731529,3429.3,3429.0,0.583273]
[1721245737134,0.09731529,3429.3,3429.0,3.55787636]
[1721245737291,0.09731529,3429.3,3429.1,2.851]
[1721245737500,0.09731529,3429.3,3429.2,2.91613]
[1721245738211,0.09731529,3429.3,3429.1,2.851]
[1721245738430,0.09731529,3429.3,3429.1,3.4860503]
[1721245739220,0.09731529,3429.3,3429.1,6.4022603]
[1721245739808,0.09731529,3429.3,3429.1,5.8522603]
[1721245740199,0.09731529,3429.3,3429.1,2.9360503]
[1721245740640,0.09731529,3429.3,3429.1,0.6350503]
[1721245741343,0.04731529,3429.3,3429.2,0.35513103]
[1721245741639,0.0927358,3429.3,3429.2,0.35513103]
[1721245748159,0.0927358,3429.3,3428.8,5.2093]
[1721245750570,0.0927358,3429.3,3429.0,2.9163]
[1721245750732,0.0927358,3429.3,3429.1,0.55]
[1721245753055,0.0927358,3429.3,3429.1,3.46619]
[1721245755469,0.0927358,3429.3,3429.1,0.55]
[1721245755629,0.0927358,3429.3,3429.1,3.4662]
[1721245755831,0.0927358,3429.3,3429.1,4.333732]
[1721245756072,0.0927358,3429.3,3429.2,2.91613]
[1721245756267,0.0927358,3429.3,3429.2,3.46613]
[1721245761862,0.0927358,3429.3,3428.4,2.3237]
[1721245762172,0.0927358,3429.3,3428.3,2.91685]
[1721245762173,2.91639,3428.9,3428.3,2.91685]
[1721245762377,2.91629,3429.1,3428.4,2.9168]
[1721245762682,0.092769,3429.0,3428.4,2.9168]
[1721245762836,0.092769,3429.0,3428.5,2.9167]
[1721245765239,0.092769,3429.1,3428.7,0.55]
[1721245766978,0.092769,3429.1,3428.5,0.55]
[1721245767154,0.092769,3429.1,3428.5,3.46669]
[1721245768042,3.008979,3429.1,3428.5,3.46669]
[1721245768563,3.008979,3429.1,3428.5,0.55]
[1721245768795,3.008979,3429.1,3428.5,3.46665]
[1721245769275,3.92731834,3429.1,3428.5,3.46665]
[1721245769688,2.91639,3428.9,3428.5,0.55]
[1721245769885,2.91639,3428.9,3428.4,0.55]
[1721245770069,2.91639,3428.9,3428.2,0.55]
[1721245770276,0.092769,3428.8,3428.2,1.324571]
[1721245770643,0.092769,3428.8,3428.3,2.91685]
[1721245770859,0.092769,3428.8,3428.4,0.55]
[1721245771454,3.009249,3428.8,3428.3,0.55]
[1721245771680,3.92758834,3428.8,3428.3,0.55]
[1721245772888,0.092769,3428.8,3428.3,1.4982291]
[1721245773089,0.092769,3428.8,3428.3,4.4151091]
[1721245773685,0.092769,3428.8,3428.4,2.91675]
[1721245773887,0.092769,3428.8,3428.6,5.39893]
[1721245774062,0.092769,3428.8,3428.7,0.886568]
[1721245774261,0.91833934,3429.0,3428.7,1.436568]
[1721245774586,0.91833934,3429.0,3428.7,0.886568]
[1721245774748,0.092769,3428.9,3428.7,0.886568]
[1721245775774,1.01110834,3428.9,3428.7,0.886568]
[1721245775983,6.75140934,3428.8,3428.1,2.91702]
[1721245776183,0.91833934,3428.7,3428.1,2.91702]
[1721245776379,1.01102095,3428.6,3428.1,2.91702]
[1721245776568,1.01102095,3428.6,3428.2,0.81583]
[1721245777997,1.01102095,3428.6,3428.2,3.7328]
[1721245777998,0.09268161,3428.6,3428.2,3.7328]
[1721245778302,0.09268161,3428.6,3428.4,2.91674]
[1721245778505,0.09268161,3428.6,3428.5,0.55]
[1721245779880,0.91833934,3428.7,3428.5,0.55]
[1721245780075,0.09259417,3428.6,3428.3,3.46689]
[1721245780294,0.09259417,3428.6,3428.3,0.86355836]
[1721245781068,0.09259417,3428.6,3428.4,2.91677]
[1721245781269,0.09259417,3428.6,3428.5,0.55]
[1721245781503,0.91833934,3428.8,3428.5,0.55]
[1721245781701,0.09261166,3428.6,3428.5,0.55]
[1721245781906,0.91833934,3428.8,3428.5,1.00961584]
[1721245782516,0.09261166,3428.7,3428.5,1.00961584]
[1721245782930,0.91833934,3428.8,3428.5,1.00961584]
[1721245783233,0.91833934,3428.9,3428.5,1.00961584]
[1721245783400,0.09261516,3428.7,3428.5,1.00961584]
[1721245783606,0.91833934,3428.9,3428.6,0.68432358]
[1721245783806,0.09261516,3428.8,3428.6,0.68432358]
[1721245784533,0.09261516,3428.8,3428.7,2.91655]
[1721245784690,0.09261516,3428.8,3428.7,3.46655]
[1721245785086,0.91833934,3429.0,3428.7,6.38304]
[1721245785327,0.09261866,3428.8,3428.7,4.40022636]
[1721245785533,0.91833934,3429.0,3428.8,0.55]
[1721245786802,0.91833934,3429.1,3428.8,0.55]
[1721245787015,0.91833934,3429.0,3428.8,0.55]
[1721245787191,0.91833934,3429.1,3428.8,0.55]
[1721245787621,0.91833934,3429.0,3428.8,0.55]
[1721245787937,0.91833934,3429.1,3428.8,0.55]
[1721245788089,0.91833934,3429.0,3428.8,3.46647]
[1721245788432,0.91833934,3429.1,3428.8,3.46647]
[1721245788635,0.91833934,3429.1,3428.8,4.42513864]
[1721245788994,0.91833934,3429.2,3428.8,4.42513864]
[1721245792610,0.09263966,3429.1,3428.8,4.42513864]
[1721245793146,0.09263966,3429.1,3429.0,2.3286]
[1721245793344,0.09263966,3429.1,3429.0,5.7949]
[1721245793499,0.95917794,3429.4,3429.2,2.91611]
[1721245793696,0.0408386,3429.4,3429.3,0.55]
[1721245794831,0.0408386,3429.4,3429.3,3.46604]
[1721245798046,0.0408386,3429.4,3429.3,8.63988]
[1721245800420,0.0408386,3429.4,3429.3,11.55592]
[1721245800665,0.0408386,3429.4,3429.3,13.52764679]
[1721245800813,0.0408386,3429.4,3429.3,19.44368679]
[1721245801016,0.0408386,3429.4,3429.3,16.52764679]
[1721245802361,0.0408386,3429.4,3429.3,19.02664679]
[1721245802560,0.0408386,3429.4,3429.3,21.94268679]
[1721245802926,0.0408386,3429.4,3429.3,25.01968679]
[1721245804919,2.3582,3431.0,3430.4,2.91508]
[1721245805116,2.3582,3431.0,3430.5,0.55]
[1721245805358,0.09293679,3430.9,3430.5,0.55]
[1721245806918,0.09293679,3430.9,3430.0,2.9154]
[1721245806919,2.91483,3430.8,3430.0,2.9154]
[1721245807119,2.91483,3430.8,3430.1,3.46529]
[1721245807362,0.09104838,3430.7,3430.1,3.46529]
[1721245807746,0.09104838,3430.7,3430.2,2.91528]
[1721245808052,0.09104838,3430.7,3430.4,2.9151]
[1721245808261,0.09104838,3430.7,3430.5,0.55]
[1721245808562,5.27281,3431.0,3430.5,0.55]
[1721245808718,0.09104838,3430.6,3430.5,0.55]
[1721245808922,5.27281,3431.0,3430.5,0.55]
[1721245809156,0.09104838,3430.6,3430.5,0.55]
[1721245809369,5.27281,3431.0,3430.5,0.55]
[1721245809662,2.3582,3431.0,3430.5,0.55]
[1721245809829,0.09104838,3430.9,3430.5,0.55]
[1721245810746,0.09104838,3430.9,3430.2,6.468568]
[1721245810747,0.09104838,3430.9,3430.3,3.46518]
[1721245810942,0.09104838,3430.9,3430.4,2.9151]
[1721245811152,0.09104838,3430.9,3430.5,0.55]
[1721245812571,0.09104838,3430.9,3430.5,1.2518388]
[1721245812930,0.09104838,3430.9,3430.5,1.31013592]
[1721245813131,0.09104838,3430.9,3430.6,2.91491]
[1721245814030,0.09104838,3430.9,3430.7,2.91483]
[1721245814227,2.4593,3431.3,3430.8,0.55]
[1721245814437,0.09104838,3431.2,3430.8,0.55]
[1721245814662,2.4593,3431.3,3430.8,0.55]
[1721245814858,0.09110448,3431.1,3430.8,0.55]
[1721245815065,2.4593,3431.3,3430.8,1.25815788]
[1721245815467,0.09110448,3431.2,3430.8,4.17291788]
[1721245815968,2.4593,3431.3,3430.8,4.17291788]
[1721245816129,0.09110448,3431.1,3430.8,4.17291788]
[1721245816328,2.4593,3431.3,3430.8,4.17291788]
[1721245816529,0.09110448,3431.0,3430.8,3.46476]
[1721245816730,2.4593,3431.3,3430.8,3.46476]
[1721245816944,0.09110448,3430.9,3430.8,3.46476]
[1721245817151,2.4593,3431.3,3430.8,3.46476]
[1721245817675,0.09110448,3431.2,3430.8,3.46476]
[1721245818233,2.4593,3431.3,3430.8,3.46476]
[1721245818551,0.09110448,3431.2,3430.8,3.46476]
[1721245818752,0.09110448,3431.2,3430.8,0.55]
[1721245819059,0.09110448,3431.1,3430.7,3.46482]
[1721245819431,5.37365,3431.3,3430.7,3.46482]
[1721245819665,0.09110448,3431.2,3430.7,3.46482]
[1721245819970,0.09110448,3431.2,3430.7,4.17297688]
[1721245820498,0.09110448,3431.2,3430.7,1.25815688]
[1721245820789,0.09110448,3431.2,3430.7,0.55]
[1721245821104,2.9146,3431.0,3430.4,2.91507]
[1721245821253,2.9146,3431.0,3430.5,0.55]
[1721245821768,0.09114655,3430.9,3430.5,0.55]
[1721245822446,3.00587655,3430.9,3430.3,0.55]
[1721245822653,2.91502,3430.6,3429.8,2.91556]
[1721245822846,2.91511,3430.4,3429.8,2.91561]
[1721245823088,2.91502,3430.6,3429.9,2.91546]
[1721245823089,0.09111148,3430.3,3429.9,2.91546]
[1721245823302,0.09111148,3430.3,3429.5,2.3507]
[1721245823303,0.09111148,3430.3,3430.2,2.91528]
[1721245823451,2.9146,3431.0,3430.3,2.91515]
[1721245823650,0.09114654,3430.9,3430.3,2.91515]
[1721245823904,0.09114654,3430.9,3430.3,0.811278]
[1721245824194,0.09114654,3430.9,3430.6,2.91489]
[1721245824347,2.91445,3431.2,3430.7,1.591]
[1721245824551,0.09112378,3430.8,3430.7,0.55]
[1721245824770,2.91445,3431.2,3430.7,0.55]
[1721245824970,0.09110099,3430.8,3430.7,0.55]
[1721245825190,0.09110099,3430.8,3430.7,1.187997]
[1721245825402,2.91445,3431.2,3430.7,1.187997]
[1721245825555,0.09110099,3430.8,3430.7,2.228997]
[1721245825762,2.91445,3431.2,3430.7,2.228997]
[1721245825980,0.0911378,3430.8,3430.7,2.228997]
[1721245826189,2.91435,3431.3,3430.8,2.91476]
[1721245826354,2.91435,3431.3,3430.9,0.55]
[1721245826680,0.0911378,3431.2,3430.9,0.55]
[1721245827051,2.262,3431.4,3430.9,0.55]
[1721245827298,0.0911378,3431.3,3430.9,0.55]
[1721245827498,0.0911378,3431.3,3430.9,1.535094]
[1721245827667,2.91429,3431.4,3430.9,1.535094]
[1721245828208,0.09119563,3431.3,3430.9,1.535094]
[1721245830120,0.09119563,3431.2,3430.9,1.535094]
[1721245830601,2.91426,3431.4,3430.9,1.535094]
[1721245830803,2.91426,3431.4,3430.9,0.55]
[1721245831006,0.09119563,3431.3,3430.9,0.55]
[1721245832309,0.12864996,3431.3,3430.9,0.55]
[1721245834159,3.04299996,3431.3,3430.9,0.55]
[1721245834678,2.2711,3431.2,3430.7,0.55]
[1721245834886,0.12866399,3431.1,3430.5,0.55]
[1721245835074,0.12866399,3431.1,3430.5,1.39924784]
[1721245835260,3.04319399,3431.1,3430.5,2.44024784]
[1721245836663,3.04319399,3431.1,3430.5,4.50601]
[1721245837563,0.12866399,3431.1,3430.5,4.50601]
[1721245837965,0.12866399,3431.1,3430.5,1.591]
[1721245838163,0.12866399,3431.1,3430.8,2.91476]
[1721245838404,2.9143,3431.4,3430.9,0.55]
[1721245838607,0.12866223,3431.0,3430.9,0.55]
[1721245838905,0.12866223,3431.0,3430.9,5.487846]
[1721245838906,0.12868325,3431.0,3430.9,5.487846]
[1721245839107,0.91833934,3431.4,3430.9,5.487846]
[1721245839283,0.12868325,3431.0,3430.9,3.46468]
[1721245839599,0.30491017,3431.0,3430.9,3.46468]
[1721245839800,0.43359342,3431.0,3430.9,3.46468]
[1721245840306,0.12868325,3431.0,3430.9,3.46468]
[1721245840664,0.91833934,3431.3,3430.9,4.50568]
[1721245840869,0.12869727,3431.2,3430.9,4.50568]
[1721245841066,2.91412,3431.6,3430.9,4.50568]
[1721245841067,0.92078015,3431.9,3431.7,8.742]
[1721245841370,0.92078015,3431.9,3431.5,5.332]
[1721245841371,0.005,3431.9,3431.8,4.50492]
[1721245841773,0.005,3431.9,3431.8,7.41884]
[1721245842067,0.005,3431.9,3431.8,8.386224]
[1721245842267,0.005,3431.9,3431.6,2.91402]
[1721245842505,0.005,3431.9,3431.7,2.91397]
[1721245846988,0.005,3431.9,3431.7,2.914]
[1721245848930,0.12467013,3431.8,3431.7,2.914]
[1721245849098,0.12467013,3431.8,3431.7,3.464]
[1721245849733,0.12467013,3431.8,3431.7,0.55]
[1721245849889,0.12467013,3431.8,3431.6,0.55]
[1721245850108,0.12467013,3431.8,3431.6,3.46409]
[1721245852339,0.12467013,3431.8,3431.7,2.914]
[1721245852534,0.12467013,3431.8,3431.7,3.464]
[1721245852739,0.12467013,3431.8,3431.7,4.156809]
[1721245853240,0.12467013,3431.8,3431.7,7.070809]
[1721245853404,0.005,3431.9,3431.8,5.82784]
[1721245853606,0.005,3431.9,3431.8,6.37784]
[1721245855244,0.005,3431.9,3431.8,9.29176]
[1721245855405,0.005,3431.9,3431.8,10.7803569]
[1721245857846,0.005,3431.9,3431.8,13.2624569]
[1721245858142,0.005,3431.9,3431.8,16.1763769]
[1721245859233,0.005,3431.9,3431.8,13.2624569]
[1721245861726,0.005,3431.9,3431.8,10.3485369]
[1721245862064,0.005,3431.9,3431.8,4.4025169]
[1721245862273,0.005,3431.9,3431.8,2.91392]
[1721245862621,0.12972616,3431.9,3431.8,2.91392]
[1721245862855,0.005,3431.9,3431.8,2.91392]
[1721245863058,0.12972616,3431.9,3431.6,5.41103]
[1721245863281,0.005,3431.9,3431.4,2.91419]
[1721245863675,0.1247244,3431.8,3431.4,2.91419]
[1721245863852,0.1247244,3431.8,3431.5,2.91411]
[1721245864165,0.1247244,3431.8,3431.4,2.91418]
[1721245864339,0.1247244,3431.8,3431.5,0.55]
[1721245864732,0.1247244,3431.8,3431.4,0.55]
[1721245865287,0.1247244,3431.8,3431.3,3.46432]
[1721245865848,0.1247244,3431.8,3431.4,2.91419]
[1721245866085,0.1247244,3431.8,3431.5,3.46416]
[1721245869864,2.2636,3431.7,3431.5,0.55]
[1721245870050,0.12460533,3431.6,3431.3,3.46434]
[1721245870253,0.12460533,3431.6,3431.3,0.55]
[1721245870456,0.12460533,3431.6,3431.3,2.91433]
[1721245870665,0.12460533,3431.6,3431.4,0.55]
[1721245870973,0.12460533,3431.6,3431.4,3.46422]
[1721245871170,0.12460533,3431.6,3431.5,3.552025]